bitfinex/quotes_BTCUSD_20240905
["timestamp","ask_amount","ask_price","bid_price","bid_amount"]
[1725496068525,2.07587022,58411.0,58410.0,0.00163]
[1725496069034,2.15269781,58411.0,58410.0,0.00163]
[1725496069502,2.22780674,58411.0,58410.0,0.00163]
[1725496069741,2.22782954,58411.0,58410.0,0.00163]
[1725496070098,2.15097915,58411.0,58410.0,0.00163]
[1725496070574,2.25341594,58411.0,58410.0,0.00163]
[1725496071129,2.15097915,58411.0,58410.0,0.00163]
[1725496071785,2.07587022,58411.0,58410.0,0.00163]
[1725496072629,2.17830701,58411.0,58410.0,0.00163]
[1725496072835,1.94517022,58411.0,58410.0,0.00163]
[1725496073060,1.67965981,58411.0,58410.0,0.00163]
[1725496073270,1.60276922,58411.0,58410.0,0.00163]
[1725496073480,1.70520601,58411.0,58410.0,0.00163]
[1725496074448,1.69520601,58411.0,58410.0,0.00163]
[1725496075344,1.59276922,58411.0,58410.0,0.00163]
[1725496075600,1.7208152,58411.0,58410.0,0.00163]
[1725496075837,1.59276922,58411.0,58410.0,0.00163]
[1725496076306,1.59376922,58411.0,58410.0,0.00163]
[1725496076584,1.7218152,58411.0,58410.0,0.00163]
[1725496076793,1.7208152,58411.0,58410.0,0.00163]
[1725496077262,1.7218152,58411.0,58410.0,0.00163]
[1725496077491,1.59376922,58411.0,58410.0,0.00163]
[1725496078165,1.59276922,58411.0,58410.0,0.00163]
[1725496079717,1.59376922,58411.0,58410.0,0.00163]
[1725496082611,1.59401469,58411.0,58410.0,0.00163]
[1725496082842,1.93641569,58411.0,58410.0,0.00163]
[1725496083069,1.59401469,58411.0,58410.0,0.00163]
[1725496084664,1.93641569,58411.0,58410.0,0.00163]
[1725496085599,1.94641569,58411.0,58410.0,0.00163]
[1725496086047,2.19517792,58411.0,58410.0,0.00163]
[1725496086267,2.09662746,58411.0,58410.0,0.00163]
[1725496086491,2.02152746,58411.0,58410.0,0.00163]
[1725496086751,1.94641569,58411.0,58410.0,0.00163]
[1725496087217,2.12007792,58411.0,58410.0,0.00163]
[1725496088996,2.12007792,58411.0,58403.0,0.066]
[1725496088997,1.540989,58404.0,58403.0,0.066]
[1725496089231,1.540989,58404.0,58402.0,0.0225]
[1725496089232,0.513672,58403.0,58402.0,0.0225]
[1725496089458,1.79537932,58403.0,58402.0,0.0225]
[1725496089712,0.77891824,58399.0,58398.0,0.0605]
[1725496089946,1.58686024,58399.0,58398.0,0.0605]
[1725496091929,1.58786024,58399.0,58398.0,0.0715]
[1725496092583,1.72208466,58399.0,58398.0,0.0715]
[1725496092727,1.59349616,58399.0,58398.0,0.0715]
[1725496093351,1.59359763,58399.0,58398.0,0.011]
[1725496093927,1.59459763,58399.0,58398.0,0.011]
[1725496094114,1.93706863,58399.0,58398.0,0.011]
[1725496095538,1.93606863,58399.0,58398.0,0.011]
[1725496097420,1.93606863,58399.0,58398.0,0.1559]
[1725496097775,1.59359763,58399.0,58398.0,0.1559]
[1725496099625,1.69641206,58399.0,58398.0,0.1559]
[1725496101043,1.33094106,58399.0,58398.0,0.1559]
[1725496101262,0.62034192,58399.0,58398.0,0.1559]
[1725496101493,0.96281292,58399.0,58398.0,0.1559]
[1725496102602,0.96281292,58399.0,58398.0,0.15753]
[1725496103057,0.62034192,58399.0,58398.0,0.15753]
[1725496103266,0.101,58399.0,58398.0,0.15753]
[1725496103714,0.001,58399.0,58398.0,0.20096727]
[1725496104172,0.001,58399.0,58398.0,0.20196727]
[1725496104864,0.001,58399.0,58398.0,0.37320527]
[1725496105308,0.001,58399.0,58398.0,0.20196727]
[1725496107259,0.00559706,58402.0,58398.0,0.05706727]
[1725496107596,0.171227,58402.0,58399.0,0.1425]
[1725496107796,0.171227,58402.0,58400.0,0.1425]
[1725496108015,0.171227,58402.0,58401.0,0.065]
[1725496108243,0.171227,58402.0,58401.0,0.1425]
[1725496108479,0.43654071,58402.0,58401.0,0.1425]
[1725496108920,0.43654071,58402.0,58401.0,0.18592631]
[1725496109139,0.171221,58404.0,58402.0,0.0621]
[1725496109598,0.171221,58404.0,58403.0,0.0621]
[1725496110115,0.271221,58404.0,58403.0,0.0621]
[1725496111018,0.271221,58404.0,58403.0,0.0631]
[1725496111669,0.272221,58404.0,58403.0,0.0631]
[1725496112225,0.101,58404.0,58403.0,0.0631]
[1725496112681,0.272221,58404.0,58403.0,0.10651901]
[1725496113299,0.614663,58404.0,58403.0,0.10651901]
[1725496113510,0.272221,58404.0,58403.0,0.10651901]
[1725496113735,0.272221,58404.0,58403.0,0.0631]
[1725496114138,0.614663,58404.0,58403.0,0.0631]
[1725496114343,0.272221,58404.0,58403.0,0.10651901]
[1725496114743,0.614663,58404.0,58403.0,0.10651901]
[1725496115191,0.614663,58404.0,58403.0,0.0631]
[1725496116537,0.95792,58404.0,58403.0,0.0631]
[1725496117206,1.00930715,58404.0,58403.0,0.0631]
[1725496118135,0.615478,58404.0,58403.0,0.0631]
[1725496119000,0.95792,58404.0,58403.0,0.0631]
[1725496119439,0.615478,58404.0,58403.0,0.0631]
[1725496120349,0.95792,58404.0,58403.0,0.0631]
[1725496120585,0.615478,58404.0,58403.0,0.0631]
[1725496122182,0.72153979,58404.0,58403.0,0.0631]
[1725496124506,0.37909779,58404.0,58403.0,0.0631]
[1725496124762,0.72153979,58404.0,58403.0,0.0631]
[1725496124959,0.20787679,58404.0,58403.0,0.0631]
[1725496125243,0.273036,58404.0,58403.0,0.0631]
[1725496127988,0.615478,58404.0,58403.0,0.0631]
[1725496128707,0.615478,58404.0,58403.0,0.06473]
[1725496129175,0.615478,58404.0,58403.0,0.06462197]
[1725496134956,0.615478,58404.0,58403.0,0.06562197]
[1725496137292,0.07705207,58408.0,58403.0,0.06562197]
[1725496137293,0.06182841,58413.0,58409.0,0.01]
[1725496137561,0.000815,58432.0,58431.0,0.514426]
[1725496137878,0.000815,58432.0,58431.0,0.0744]
[1725496138137,0.000815,58432.0,58431.0,0.28296878]
[1725496138630,0.000815,58432.0,58431.0,0.62525278]
[1725496138869,0.000815,58432.0,58431.0,0.96653678]
[1725496139331,0.000815,58432.0,58431.0,0.96753678]
[1725496139834,0.000815,58432.0,58431.0,0.98153678]
[1725496140070,0.001815,58432.0,58431.0,2.00909909]
[1725496140299,0.02091311,58448.0,58434.0,0.856665]
[1725496140520,0.02091311,58448.0,58434.0,1.340631]
[1725496140793,0.02091311,58448.0,58434.0,1.37804866]
[1725496141015,0.02091311,58448.0,58434.0,1.72031466]
[1725496141466,0.02091311,58448.0,58434.0,1.73031466]
[1725496141711,0.02091311,58448.0,58434.0,1.73231466]
[1725496141940,0.02091311,58448.0,58434.0,1.75231466]
[1725496142313,0.02091311,58448.0,58434.0,1.38804866]
[1725496142525,0.02091311,58448.0,58434.0,1.05978266]
[1725496142526,0.0215,58435.0,58434.0,1.05978266]
[1725496143248,0.0215,58435.0,58434.0,1.68074297]
[1725496145992,0.0215,58435.0,58434.0,2.02300897]
[1725496146426,0.0215,58435.0,58434.0,1.68074297]
[1725496147129,0.0215,58435.0,58434.0,2.02300897]
[1725496147357,0.0215,58435.0,58434.0,1.68274297]
[1725496147583,0.02047094,58435.0,58434.0,1.68274297]
[1725496147796,0.02047094,58435.0,58434.0,2.02500897]
[1725496148030,0.02047094,58435.0,58434.0,1.68274297]
[1725496148702,0.02047094,58435.0,58434.0,2.02500897]
[1725496149638,0.01851977,58435.0,58434.0,2.02500897]
[1725496149915,0.02091311,58448.0,58444.0,0.021]
[1725496150142,1.1e-07,58449.0,58448.0,0.91277031]
[1725496150345,0.0004,58459.0,58453.0,0.556232]
[1725496150557,0.0004,58459.0,58453.0,1.92439131]
[1725496150771,0.0004,58459.0,58453.0,2.32672677]
[1725496151033,0.0004,58459.0,58453.0,2.05037177]
[1725496152727,0.0004,58459.0,58453.0,1.40852246]
[1725496152957,0.0004,58459.0,58453.0,1.67321677]
[1725496153396,0.0004,58459.0,58453.0,1.68721677]
[1725496153626,0.0004,58459.0,58453.0,1.70121677]
[1725496153842,0.0004,58459.0,58453.0,1.68721677]
[1725496154108,0.0004,58459.0,58453.0,0.29625746]
[1725496154369,0.0004,58459.0,58453.0,0.07618046]
[1725496155480,0.0004,58459.0,58453.0,0.06218046]
[1725496155719,0.0004,58459.0,58453.0,0.07618046]
[1725496156246,0.0004,58459.0,58453.0,0.06218046]
[1725496156458,0.0004,58459.0,58453.0,0.23325746]
[1725496156675,0.0004,58459.0,58453.0,0.07618046]
[1725496157117,0.0004,58459.0,58453.0,0.04818046]
[1725496157584,0.0004,58459.0,58453.0,0.07618046]
[1725496158016,0.0004,58459.0,58453.0,0.24725746]
[1725496158689,0.0004,58459.0,58453.0,0.23325746]
[1725496159136,0.0004,58459.0,58453.0,0.24725746]
[1725496159257,0.17146,58459.0,58453.0,0.06218046]
[1725496159727,0.171063,58458.0,58453.0,0.07618046]
[1725496159937,0.171067,58457.0,58453.0,0.07618046]
[1725496160145,0.171884,58454.0,58453.0,0.06218046]
[1725496160366,0.856182,58454.0,58453.0,0.039]
[1725496160587,0.918782,58454.0,58453.0,0.038]
[1725496160830,0.918782,58454.0,58453.0,0.025]
[1725496161071,1.260931,58454.0,58453.0,0.024]
[1725496161274,1.260931,58454.0,58453.0,0.038]
[1725496161507,1.260931,58454.0,58453.0,0.028]
[1725496161932,1.260931,58454.0,58453.0,0.014]
[1725496162151,1.260931,58454.0,58453.0,0.028]
[1725496162396,1.197602,58450.0,58449.0,0.01]
[1725496162615,1.46229631,58450.0,58449.0,0.01]
[1725496163537,1.46229631,58450.0,58449.0,0.024]
[1725496164408,1.29121031,58450.0,58449.0,0.024]
[1725496164630,1.46229631,58450.0,58449.0,0.024]
[1725496165076,1.46229631,58450.0,58449.0,0.038]
[1725496166390,1.60589631,58450.0,58449.0,0.028]
[1725496173248,2.29959631,58450.0,58449.0,0.028]
[1725496174395,1.87652431,58450.0,58449.0,0.038]
[1725496174599,1.81382431,58450.0,58449.0,0.038]
[1725496175290,1.81382431,58450.0,58449.0,0.028]
[1725496175291,2.73524928,58450.0,58449.0,0.028]
[1725496175507,2.78674678,58450.0,58449.0,0.028]
[1725496175736,2.81357172,58450.0,58449.0,0.028]
[1725496175946,2.78674678,58450.0,58449.0,0.028]
[1725496176166,2.78674678,58450.0,58449.0,0.01563]
[1725496176366,2.78674678,58450.0,58449.0,0.00163]
[1725496176574,2.78674678,58450.0,58449.0,0.02563]
[1725496177241,2.83524928,58450.0,58449.0,0.02563]
[1725496177470,2.85824928,58450.0,58449.0,0.02563]
[1725496178309,2.85824928,58450.0,58449.0,0.01463]
[1725496178512,2.85924928,58450.0,58449.0,0.00163]
[1725496178734,3.20142128,58450.0,58449.0,0.00463]
[1725496179176,3.20142128,58450.0,58449.0,0.00163]
[1725496179404,3.20142128,58450.0,58428.0,0.01]
[1725496179405,1.197952,58433.0,58428.0,0.01]
[1725496179630,1.52384631,58433.0,58430.0,0.01]
[1725496180465,1.52384631,58433.0,58427.0,0.0225]
[1725496180687,1.52384631,58433.0,58428.0,0.01]
[1725496181624,1.52484631,58433.0,58432.0,0.01063]
[1725496181838,1.52484631,58433.0,58432.0,0.02063]
[1725496182056,1.52384631,58433.0,58432.0,0.01163]
[1725496182280,1.52484631,58433.0,58432.0,0.02263]
[1725496182487,1.52484631,58433.0,58432.0,0.01263]
[1725496182959,1.52484631,58433.0,58432.0,0.01963]
[1725496183374,1.52484631,58433.0,58432.0,0.01263]
[1725496184283,2.56626923,58433.0,58432.0,0.01263]
[1725496184506,2.42457492,58433.0,58432.0,0.01263]
[1725496184725,2.42457492,58433.0,58432.0,0.02163]
[1725496186944,2.32399723,58433.0,58432.0,0.02163]
[1725496199557,2.32399723,58433.0,58418.0,0.081]
[1725496199558,0.01,58416.0,58409.0,0.0205]
[1725496199760,0.98177389,58416.0,58409.0,0.0205]
[1725496200003,1.208424,58410.0,58409.0,0.0205]
[1725496200240,1.57311831,58410.0,58409.0,0.0205]
[1725496200906,1.308424,58410.0,58409.0,0.0205]
[1725496201121,1.57311831,58410.0,58409.0,0.0205]
[1725496201554,1.57311831,58410.0,58409.0,0.02213]
[1725496201772,1.57311831,58410.0,58409.0,0.02513]
[1725496201994,0.956017,58410.0,58409.0,0.02513]
[1725496202208,1.23071131,58410.0,58409.0,0.02513]
[1725496202440,1.57311831,58410.0,58409.0,0.02513]
[1725496202687,1.57311831,58410.0,58409.0,0.02813]
[1725496203366,1.57860493,58410.0,58409.0,0.02813]
[1725496203588,2.05623551,58410.0,58409.0,0.02813]
[1725496208921,2.74993551,58410.0,58409.0,0.02813]
[1725496209386,2.81343551,58410.0,58409.0,0.02813]
[1725496210768,3.15584251,58410.0,58409.0,0.02813]
[1725496211855,2.81343551,58410.0,58409.0,0.02813]
[1725496214355,2.81443551,58410.0,58409.0,0.02813]
[1725496214573,2.81343551,58410.0,58409.0,0.02513]
[1725496214787,2.81443551,58410.0,58409.0,0.02213]
[1725496215015,2.81643551,58410.0,58409.0,0.02213]
[1725496215239,2.81943551,58410.0,58409.0,0.02213]
[1725496215462,2.82043551,58410.0,58409.0,0.02213]
[1725496216187,2.81943551,58410.0,58409.0,0.02213]
[1725496218570,3.18584251,58410.0,58409.0,0.02213]
[1725496219230,3.46053682,58410.0,58409.0,0.02213]
[1725496219680,3.48738247,58410.0,58409.0,0.02213]
[1725496219934,1.692689,58404.0,58403.0,0.05163]
[1725496220211,2.47594889,58404.0,58403.0,0.05163]
[1725496220684,2.47494889,58404.0,58403.0,0.05163]
[1725496221370,2.13250689,58404.0,58403.0,0.05163]
[1725496221599,1.78761258,58404.0,58403.0,0.05163]
[1725496221842,1.79161258,58404.0,58403.0,0.05163]
[1725496222513,1.79961258,58404.0,58403.0,0.05163]
[1725496223178,1.79561258,58404.0,58403.0,0.05163]
[1725496224007,2.49477278,58404.0,58403.0,0.05163]
[1725496224220,2.50277278,58404.0,58403.0,0.05163]
[1725496226970,2.50377278,58404.0,58403.0,0.05163]
[1725496228414,2.50277278,58404.0,58403.0,0.05163]
[1725496228705,2.64384351,58404.0,58403.0,0.05163]
[1725496228968,3.84384351,58404.0,58403.0,0.05163]
[1725496233532,3.85384351,58404.0,58403.0,0.05163]
[1725496237886,3.85484351,58404.0,58403.0,0.05163]
[1725496238617,3.85384351,58404.0,58403.0,0.05163]
[1725496238857,3.91464351,58404.0,58403.0,0.05163]
[1725496239123,3.6499492,58404.0,58403.0,0.05163]
[1725496239618,3.6509492,58404.0,58403.0,0.05163]
[1725496240582,3.6499492,58404.0,58403.0,0.05163]
[1725496242744,3.6509492,58404.0,58403.0,0.05163]
[1725496242979,3.6499492,58404.0,58403.0,0.05163]
[1725496243210,3.5791492,58404.0,58403.0,0.05163]
[1725496243660,3.5891492,58404.0,58403.0,0.05163]
[1725496243881,3.5791492,58404.0,58403.0,0.05163]
[1725496244345,3.69160835,58404.0,58403.0,0.05163]
[1725496245285,3.62551942,58404.0,58403.0,0.05163]
[1725496245971,3.73162665,58404.0,58403.0,0.05163]
[1725496246214,3.80675079,58404.0,58403.0,0.05163]
[1725496246445,4.01155177,58404.0,58403.0,0.05163]
[1725496246904,4.01255177,58404.0,58403.0,0.05163]
[1725496247861,4.01255177,58404.0,58392.0,0.00162]
[1725496247862,0.01,58393.0,58392.0,0.00162]
[1725496248132,1.29915586,58393.0,58392.0,0.00162]
[1725496248363,2.35067386,58393.0,58392.0,0.00162]
[1725496248634,2.47752881,58393.0,58392.0,0.00162]
[1725496249028,2.62486298,58393.0,58392.0,0.00162]
[1725496249255,2.20521883,58393.0,58392.0,0.00162]
[1725496249493,2.46067386,58393.0,58392.0,0.00162]
[1725496249711,2.47467386,58393.0,58392.0,0.00162]
[1725496250186,2.48467386,58393.0,58392.0,0.00162]
[1725496250659,2.49297692,58393.0,58392.0,0.00162]
[1725496250898,2.50697692,58393.0,58392.0,0.00162]
[1725496252061,2.52097692,58393.0,58392.0,0.00162]
[1725496252288,2.50697692,58393.0,58392.0,0.00162]
[1725496252757,2.51997692,58393.0,58392.0,0.00162]
[1725496252983,2.52097692,58393.0,58392.0,0.00162]
[1725496253674,1.894849,58391.0,58389.0,0.0225]
[1725496253910,2.25071221,58391.0,58389.0,0.0225]
[1725496254135,2.25069665,58391.0,58389.0,0.0225]
[1725496254852,2.13639721,58391.0,58389.0,0.0225]
[1725496255551,2.15039721,58391.0,58389.0,0.0225]
[1725496255775,2.13639721,58391.0,58389.0,0.0225]
[1725496256241,2.22849721,58391.0,58389.0,0.0225]
[1725496256470,2.20049721,58391.0,58389.0,0.0225]
[1725496256701,2.21449721,58391.0,58389.0,0.0225]
[1725496256915,2.22849721,58391.0,58389.0,0.0225]
[1725496257125,3.41449721,58391.0,58389.0,0.0225]
[1725496257559,3.42849721,58391.0,58389.0,0.0225]
[1725496258024,3.41449721,58391.0,58389.0,0.0225]
[1725496258254,3.40049721,58391.0,58389.0,0.0225]
[1725496258525,3.42849721,58391.0,58389.0,0.0225]
[1725496258768,3.42849721,58391.0,58389.0,0.00140625]
[1725496258769,1.95706295,58390.0,58389.0,0.00140625]
[1725496258995,2.39895394,58390.0,58389.0,0.00140625]
[1725496259691,2.39895394,58390.0,58376.0,0.1673]
[1725496259692,1.551542,58383.0,58376.0,0.1673]
[1725496259925,1.99129859,58383.0,58376.0,0.1673]
[1725496260162,1.93999703,58383.0,58376.0,0.1673]
[1725496260388,2.33574298,58383.0,58376.0,0.1673]
[1725496260616,2.38817894,58383.0,58376.0,0.1673]
[1725496260840,2.38917894,58383.0,58376.0,0.1673]
[1725496261372,2.38917894,58383.0,58376.0,0.0225]
[1725496261373,2.7828923,58383.0,58376.0,0.0225]
[1725496261605,1.5427,58377.0,58376.0,0.0225]
[1725496261841,3.39379735,58377.0,58376.0,0.0225]
[1725496262083,3.35250072,58377.0,58376.0,0.0225]
[1725496262350,1.541884,58370.0,58369.0,0.0205]
[1725496262589,2.00630269,58370.0,58369.0,0.0205]
[1725496262817,0.021,58367.0,58366.0,0.00164]
[1725496263046,0.021,58367.0,58359.0,0.00164]
[1725496263047,0.877677,58365.0,58359.0,0.00164]
[1725496263285,1.71556818,58365.0,58359.0,0.00164]
[1725496263515,2.13467514,58365.0,58359.0,0.00164]
[1725496263742,1.905751,58363.0,58359.0,0.00164]
[1725496263977,0.05354918,58362.0,58359.0,0.00164]
[1725496264205,1.35295718,58362.0,58359.0,0.00164]
[1725496264441,1.77208114,58362.0,58359.0,0.00164]
[1725496264906,1.77108114,58362.0,58359.0,0.00164]
[1725496265134,1.77208114,58362.0,58359.0,0.00164]
[1725496265362,1.79894906,58362.0,58359.0,0.00164]
[1725496266529,1.81294906,58362.0,58359.0,0.00164]
[1725496266757,1.81752797,58362.0,58359.0,0.00164]
[1725496266973,1.83152797,58362.0,58359.0,0.00164]
[1725496267184,1.81752797,58362.0,58359.0,0.00164]
[1725496267433,1.80352797,58362.0,58359.0,0.00164]
[1725496267660,1.81752797,58362.0,58359.0,0.00164]
[1725496267888,1.83152797,58362.0,58359.0,0.00164]
[1725496268565,1.54315,58360.0,58359.0,0.00164]
[1725496268785,2.03759017,58360.0,58359.0,0.00164]
[1725496269911,2.05059017,58360.0,58359.0,0.00164]
[1725496270126,2.03759017,58360.0,58359.0,0.00164]
[1725496270336,2.05059017,58360.0,58359.0,0.00164]
[1725496270565,2.04959017,58360.0,58359.0,0.00164]
[1725496270781,2.06259017,58360.0,58359.0,0.00164]
[1725496271003,2.06359017,58360.0,58359.0,0.00164]
[1725496271481,2.40629017,58360.0,58359.0,0.00164]
[1725496271942,2.39329017,58360.0,58359.0,0.00164]
[1725496272615,1.77113514,58360.0,58359.0,0.00164]
[1725496272862,1.92160503,58360.0,58359.0,0.14314]
[1725496273308,1.93560503,58360.0,58359.0,0.14314]
[1725496273935,1.92160503,58360.0,58359.0,0.08234]
[1725496274166,1.93260503,58360.0,58359.0,0.08234]
[1725496274401,2.51860503,58360.0,58359.0,0.08234]
[1725496274635,0.26545503,58357.0,58356.0,0.0835]
[1725496274868,0.87953203,58357.0,58356.0,0.0835]
[1725496275114,1.56496803,58357.0,58356.0,0.0835]
[1725496275801,1.57296803,58357.0,58356.0,0.0835]
[1725496276510,1.57296803,58357.0,58356.0,0.0205]
[1725496276986,1.58096803,58357.0,58356.0,0.0205]
[1725496278414,1.58096803,58357.0,58356.0,0.084]
[1725496280538,1.028187,58355.0,58353.0,0.07963]
[1725496280773,0.43569375,58356.0,58353.0,0.07963]
[1725496280774,0.43682203,58354.0,58353.0,0.07963]
[1725496281003,1.22229203,58354.0,58353.0,0.07963]
[1725496281244,1.56502703,58354.0,58353.0,0.07963]
[1725496281715,1.56502703,58354.0,58353.0,0.00163]
[1725496282597,1.56902703,58354.0,58353.0,0.00163]
[1725496283227,2.17302703,58354.0,58353.0,0.00163]
[1725496284598,2.17866627,58354.0,58353.0,0.00163]
[1725496286204,2.0194929,58354.0,58353.0,0.00163]
[1725496286454,1.199614,58352.0,58351.0,0.02414]
[1725496286929,1.299614,58352.0,58351.0,0.02414]
[1725496287376,1.75739696,58352.0,58351.0,0.02414]
[1725496287604,1.83294614,58352.0,58351.0,0.02414]
[1725496288076,2.17569314,58352.0,58351.0,0.02414]
[1725496288546,2.17769314,58352.0,58351.0,0.02414]
[1725496289006,2.17569314,58352.0,58351.0,0.02414]
[1725496289243,2.18769314,58352.0,58351.0,0.02414]
[1725496289645,2.18569314,58352.0,58351.0,0.02414]
[1725496289891,1.85294614,58352.0,58351.0,0.02414]
[1725496290076,1.662361,58352.0,58351.0,0.02414]
[1725496290282,1.92809157,58352.0,58351.0,0.02414]
[1725496290849,1.58534457,58352.0,58351.0,0.02414]
[1725496291269,1.58534457,58352.0,58351.0,0.02514]
[1725496291493,1.58534457,58352.0,58351.0,0.08634]
[1725496291494,0.63412,58352.0,58351.0,0.08634]
[1725496291727,0.281373,58352.0,58351.0,0.08634]
[1725496291983,0.281373,58352.0,58351.0,0.16764]
[1725496291984,0.52412,58352.0,58351.0,0.16764]
[1725496292212,0.183373,58352.0,58351.0,0.16764]
[1725496292476,0.52183675,58352.0,58351.0,0.16764]
[1725496292694,0.86658375,58352.0,58351.0,0.16764]
[1725496293647,0.96658375,58352.0,58351.0,0.16764]
[1725496293864,0.62383675,58352.0,58351.0,0.16764]
[1725496294318,0.96658375,58352.0,58351.0,0.16764]
[1725496294797,0.33814178,58352.0,58351.0,0.16764]
[1725496295033,0.50951478,58352.0,58351.0,0.16764]
[1725496295474,0.33814178,58352.0,58351.0,0.16764]
[1725496295971,0.50951478,58352.0,58351.0,0.16764]
[1725496296366,0.33814178,58352.0,58351.0,0.16764]
[1725496296966,0.12574178,58352.0,58351.0,0.16764]
[1725496297151,0.12574178,58352.0,58351.0,0.339016]
[1725496297351,0.12374178,58352.0,58351.0,0.72957752]
[1725496297556,0.12474178,58352.0,58351.0,0.73157752]
[1725496297762,0.12574178,58352.0,58351.0,0.73257752]
[1725496298169,0.12574178,58352.0,58351.0,1.07533052]
[1725496298581,0.12574178,58352.0,58351.0,1.42008352]
[1725496299439,0.12574178,58352.0,58351.0,1.07533052]
[1725496299903,0.12574178,58352.0,58351.0,1.07433052]
[1725496299904,0.12474178,58352.0,58351.0,1.07433052]
[1725496300118,0.12574178,58352.0,58351.0,1.07533052]
[1725496300332,0.12474178,58352.0,58351.0,1.07333052]
[1725496300546,0.12374178,58352.0,58351.0,1.07233052]
[1725496300770,0.12474178,58352.0,58351.0,1.08133052]
[1725496301204,0.12374178,58352.0,58351.0,1.07233052]
[1725496301413,0.12474178,58352.0,58351.0,1.07333052]
[1725496301628,0.12574178,58352.0,58351.0,1.08233052]
[1725496302251,0.12574178,58352.0,58351.0,1.08433052]
[1725496302864,0.12574178,58352.0,58351.0,1.08233052]
[1725496304716,0.12574178,58352.0,58351.0,0.39682452]
[1725496306111,0.13798392,58352.0,58351.0,0.73957752]
[1725496306351,0.12574178,58352.0,58351.0,0.73957752]
[1725496307024,0.12574178,58352.0,58351.0,1.42708352]
[1725496307328,0.6,58354.0,58353.0,0.547111]
[1725496307329,0.59195758,58354.0,58353.0,0.547111]
[1725496307551,0.59195758,58354.0,58353.0,1.59632357]
[1725496307741,0.59195758,58354.0,58353.0,1.64412397]
[1725496307959,0.59195758,58354.0,58353.0,1.98686497]
[1725496308601,0.001,58354.0,58353.0,1.99586497]
[1725496309048,0.000816,58359.0,58358.0,0.93438]
[1725496309276,0.000816,58359.0,58358.0,0.93538]
[1725496309483,0.000816,58359.0,58358.0,0.98316008]
[1725496310528,0.000816,58359.0,58358.0,0.99716008]
[1725496311228,0.000816,58359.0,58358.0,0.14038008]
[1725496311475,0.000816,58359.0,58358.0,0.15438008]
[1725496313469,0.600816,58359.0,58358.0,0.15438008]
[1725496314087,0.772169,58359.0,58358.0,0.15438008]
[1725496314315,0.600816,58359.0,58358.0,0.07678008]
[1725496314554,0.600816,58359.0,58358.0,0.06278008]
[1725496314781,0.600816,58359.0,58358.0,0.015]
[1725496315186,0.600816,58359.0,58358.0,0.027]
[1725496315487,0.600816,58359.0,58358.0,0.028]
[1725496315728,0.600816,58359.0,58358.0,0.015]
[1725496315941,0.772169,58359.0,58358.0,0.028]
[1725496316166,1.057169,58359.0,58358.0,0.014]
[1725496316382,0.885816,58359.0,58358.0,0.014]
[1725496316854,0.885816,58359.0,58358.0,0.07178008]
[1725496317073,0.885816,58359.0,58358.0,0.06178008]
[1725496317287,1.057169,58359.0,58358.0,0.06178008]
[1725496317538,1.057169,58359.0,58358.0,0.07578008]
[1725496318335,1.399875,58359.0,58358.0,0.07478008]
[1725496318537,1.399875,58359.0,58358.0,0.07578008]
[1725496318743,1.399875,58359.0,58358.0,0.028]
[1725496319455,1.057169,58359.0,58358.0,0.028]
[1725496319658,0.885816,58359.0,58358.0,0.028]
[1725496319867,1.057169,58359.0,58358.0,0.028]
[1725496320280,1.228522,58359.0,58358.0,0.028]
[1725496320490,2.14851157,58359.0,58358.0,0.028]
[1725496320701,2.49121757,58359.0,58358.0,0.07478008]
[1725496320923,2.98735953,58359.0,58358.0,0.027]
[1725496321138,3.06290871,58359.0,58358.0,0.027]
[1725496321564,3.06290871,58359.0,58358.0,0.014]
[1725496321777,3.06846981,58359.0,58358.0,0.014]
[1725496321989,3.01592063,58359.0,58358.0,0.014]
[1725496322658,1.199572,58354.0,58353.0,0.001632]
[1725496322851,1.62680257,58354.0,58353.0,0.001632]
[1725496324914,1.62761857,58354.0,58353.0,0.001632]
[1725496325121,1.62861857,58354.0,58353.0,0.001632]
[1725496325578,1.62761857,58354.0,58353.0,0.001632]
[1725496325783,1.62861857,58354.0,58353.0,0.001632]
[1725496326207,1.62761857,58354.0,58353.0,0.001632]
[1725496327604,1.56988357,58354.0,58353.0,0.001632]
[1725496327827,1.304153,58354.0,58353.0,0.002632]
[1725496328546,0.447316,58354.0,58353.0,0.002632]
[1725496328775,0.618683,58354.0,58353.0,0.002632]
[1725496329002,0.961418,58354.0,58353.0,0.002632]
[1725496329891,1.99361857,58354.0,58353.0,0.001632]
[1725496332034,1.542361,58352.0,58351.0,0.02414]
[1725496332277,1.85981018,58352.0,58351.0,0.02414]
[1725496332497,1.91324614,58352.0,58351.0,0.02414]
[1725496333218,1.91324614,58352.0,58350.0,0.00162]
[1725496333219,1.946348,58351.0,58350.0,0.00162]
[1725496333436,2.09831071,58351.0,58350.0,0.00162]
[1725496335047,1.75703096,58351.0,58350.0,0.00162]
[1725496335271,1.96932557,58351.0,58350.0,0.00162]
[1725496335767,1.97477988,58351.0,58350.0,0.00162]
[1725496335953,1.63802688,58351.0,58350.0,0.00262]
[1725496336176,0.602636,58351.0,58350.0,0.00162]
[1725496336395,0.602636,58351.0,58350.0,0.00362]
[1725496336396,0.27286,58351.0,58350.0,0.00362]
[1725496336662,0.27286,58351.0,58350.0,0.00462]
[1725496336663,0.27886,58351.0,58350.0,0.00462]
[1725496336900,0.27886,58351.0,58350.0,0.56657059]
[1725496337118,0.27286,58351.0,58350.0,0.51722614]
[1725496337366,0.26086,58351.0,58350.0,0.56403873]
[1725496337597,0.26086,58351.0,58350.0,0.56703873]
[1725496337843,0.26086,58351.0,58350.0,0.91179773]
[1725496339373,0.26086,58351.0,58350.0,0.91079773]
[1725496339818,0.26086,58351.0,58350.0,0.92279773]
[1725496340055,0.26086,58351.0,58350.0,0.93479773]
[1725496340301,0.26086,58351.0,58350.0,0.92079773]
[1725496340797,0.26086,58351.0,58350.0,0.93479773]
[1725496341283,0.26086,58351.0,58350.0,0.92079773]
[1725496342419,0.26086,58351.0,58350.0,0.90679773]
[1725496342642,0.26086,58351.0,58350.0,0.92079773]
[1725496342873,0.26086,58351.0,58350.0,0.06181259]